bitfinex-derivatives/quotes_ETHF0:USTF0_20240905
["timestamp","ask_amount","ask_price","bid_price","bid_amount"]
[1725556335768,0.3907,2384.2,2383.7,3.87]
[1725556336078,0.3907,2384.2,2383.4,0.7269]
[1725556336079,3.2078,2384.0,2383.6,0.41954]
[1725556336278,0.41952,2383.8,2383.4,0.7269]
[1725556336577,3.2078,2383.7,2383.3,0.4196]
[1725556336885,0.3907,2383.6,2383.3,0.4196]
[1725556337065,0.3907,2383.6,2383.2,3.87]
[1725556337066,0.3907,2383.6,2383.2,4.28961]
[1725556337263,0.3907,2383.6,2383.3,0.41959]
[1725556337465,0.3907,2383.6,2383.4,0.41958]
[1725556337672,0.41954,2383.7,2383.5,3.87]
[1725556337869,1.04861,2384.3,2383.5,3.87]
[1725556337870,1.04836,2384.8,2383.8,6.25120514]
[1725556338067,0.3634,2384.7,2384.2,3.87]
[1725556338265,0.3634,2384.7,2384.0,3.2078]
[1725556338266,0.3634,2384.7,2384.6,3.87]
[1725556338480,0.3634,2384.7,2384.6,4.28937]
[1725556338681,0.3634,2384.7,2384.6,3.87]
[1725556338867,0.3634,2384.7,2384.4,3.2140971]
[1725556339180,0.3634,2384.7,2384.4,3.6335071]
[1725556339382,0.3634,2384.7,2384.4,0.0062971]
[1725556339383,0.41939,2384.5,2384.4,0.0062971]
[1725556339878,4.61299,2384.5,2384.4,0.0062971]
[1725556340079,4.98209,2384.5,2384.4,0.0062971]
[1725556340671,0.3691,2384.5,2384.4,0.0062971]
[1725556341174,4.5627,2384.5,2384.4,0.0062971]
[1725556341578,3.2078,2384.6,2384.4,0.0062971]
[1725556341769,0.41939,2384.5,2384.4,0.0062971]
[1725556342186,4.99069,2384.5,2384.4,0.0062971]
[1725556343579,0.3777,2384.5,2384.4,0.0062971]
[1725556343783,0.41937,2384.6,2384.4,0.0062971]
[1725556344172,3.62718,2384.6,2384.4,0.0062971]
[1725556345080,3.2078,2384.6,2384.5,0.41939]
[1725556345285,3.2078,2385.0,2384.8,0.41933]
[1725556345587,0.41933,2384.9,2384.6,0.41936]
[1725556345789,3.99271,2385.0,2384.7,0.41936]
[1725556346284,3.99271,2385.0,2384.5,3.87]
[1725556346285,3.5734,2385.0,2384.9,0.41932]
[1725556346490,3.5734,2385.0,2384.6,0.3909]
[1725556346677,3.5734,2385.0,2384.8,0.41933]
[1725556346877,0.41933,2384.9,2384.6,0.81026]
[1725556347378,3.5734,2385.0,2384.6,0.3909]
[1725556347574,3.5734,2385.0,2384.8,0.41933]
[1725556348086,3.5734,2385.0,2384.9,0.41932]
[1725556349184,3.5734,2385.0,2384.6,0.3909]
[1725556349494,3.5734,2385.0,2384.9,0.41932]
[1725556350782,3.5734,2385.0,2384.6,0.3909]
[1725556350979,3.99271,2385.0,2384.8,0.41932]
[1725556351292,0.41932,2384.9,2384.7,0.41935]
[1725556351490,3.99271,2385.0,2384.6,0.3909]
[1725556351786,3.5734,2385.0,2384.9,0.41932]
[1725556352183,3.2078,2385.0,2384.9,0.41932]
[1725556352584,3.2078,2385.0,2384.9,4.61212]
[1725556354192,3.2078,2385.0,2384.9,10.61212]
[1725556354490,0.3724,2385.3,2385.2,0.41927]
[1725556355091,0.3724,2385.3,2385.2,4.61207]
[1725556355283,0.41924,2385.4,2385.3,0.41925]
[1725556355585,0.384,2385.5,2384.8,4.28934]
[1725556355789,0.384,2385.5,2385.4,0.41923]
[1725556356182,3.2078,2386.1,2385.5,4.61122]
[1725556356387,3.2078,2386.1,2385.6,0.0062971]
[1725556356687,0.41913,2386.0,2385.6,0.0062971]
[1725556356890,3.2078,2386.1,2385.6,0.0062971]
[1725556357087,0.41908,2386.3,2385.8,1.04791]
[1725556357282,3.9858,2386.7,2385.7,7.0778]
[1725556357486,3.9858,2386.7,2385.6,1.0542771]
[1725556357487,0.41918,2385.7,2385.6,0.4254871]
[1725556357994,0.41917,2385.8,2385.6,4.6174871]
[1725556358189,1.04787,2385.9,2385.6,0.0062971]
[1725556358391,0.41918,2385.7,2385.6,0.0062971]
[1725556358596,5.7229,2385.7,2385.6,0.0062971]
[1725556358795,4.67494,2385.7,2385.6,0.0062971]
[1725556358996,5.7229,2385.7,2385.6,0.0062971]
[1725556359292,9.9149,2385.7,2385.6,0.0062971]
[1725556359502,13.3998,2385.7,2385.0,3.2078]
[1725556359685,3.2078,2385.4,2385.0,0.41929]
[1725556359889,4.25591,2385.4,2385.0,0.41929]
[1725556360086,0.41928,2385.2,2385.0,0.41929]
[1725556360489,0.41927,2385.2,2385.0,0.41929]
[1725556360695,0.4193,2385.0,2384.9,0.0062971]
[1725556360991,0.4193,2385.0,2384.9,0.4256171]
[1725556361196,0.4193,2385.0,2384.9,0.0062971]
[1725556361399,0.41939,2384.5,2384.4,0.211]
[1725556361589,0.41939,2384.5,2384.2,0.41943]
[1725556362297,0.3677,2384.6,2384.1,7.49725]
[1725556362489,0.41944,2384.2,2384.1,3.2140971]
[1725556362790,0.41944,2384.2,2384.1,0.0062971]
[1725556364101,5.66246,2384.2,2384.1,0.0062971]
[1725556364282,5.66246,2384.2,2383.3,0.211]
[1725556364283,0.41958,2383.4,2383.3,0.211]
[1725556364489,0.41961,2383.3,2382.9,0.41966]
[1725556364699,0.41962,2383.2,2382.8,12.72053044]
[1725556364895,3.2078,2383.3,2382.8,3.2078]
[1725556365193,0.41967,2382.9,2382.8,3.2140971]
[1725556365389,0.41967,2382.9,2382.8,0.0062971]
[1725556365588,4.61647,2382.9,2382.8,0.0062971]
[1725556365999,6.02736,2382.9,2382.8,0.0062971]
[1725556366196,4.97817,2382.9,2382.8,0.0062971]
[1725556368795,0.3617,2382.9,2382.8,0.0062971]
[1725556369002,3.563,2383.0,2382.8,0.0062971]
[1725556369300,3.98266,2383.0,2382.8,0.0062971]
[1725556369502,3.563,2383.0,2382.8,0.0062971]
[1725556369905,3.98266,2383.0,2382.8,0.0062971]
[1725556370203,0.41967,2382.9,2382.8,0.0062971]
[1725556370396,3.98266,2383.0,2382.8,0.0062971]
[1725556370998,0.3552,2383.0,2382.8,0.4259871]
[1725556371200,0.3552,2383.0,2382.8,0.0062971]
[1725556371395,0.7749,2383.0,2382.8,0.0062971]
[1725556372009,0.41971,2382.9,2382.8,0.0062971]
[1725556372297,3.62751,2382.9,2382.8,0.0062971]
[1725556372502,7.82431,2382.9,2382.8,0.0062971]
[1725556373301,3.62751,2382.9,2382.8,0.0062971]
[1725556376107,0.41971,2382.9,2382.8,0.0062971]
[1725556377097,3.9827,2383.0,2382.8,0.4260171]
[1725556377299,3.9827,2383.0,2382.8,0.0062971]
[1725556377500,0.41971,2382.9,2382.8,0.0062971]
[1725556378001,0.78261,2382.9,2382.8,0.0062971]
[1725556380411,4.97941,2382.9,2382.8,0.0062971]
[1725556380602,6.0287,2382.9,2382.8,0.0062971]
[1725556380802,0.41976,2382.7,2382.5,0.41978]
[1725556381011,0.41977,2382.6,2382.4,0.41979]
[1725556381314,3.62756,2382.7,2382.5,0.41978]
[1725556382007,0.41977,2382.6,2382.4,0.4260871]
[1725556382408,3.62756,2382.7,2382.5,0.41979]
[1725556382606,3.2078,2382.7,2382.6,0.41977]
[1725556383611,3.62755,2382.7,2382.6,0.41977]
[1725556383812,3.62755,2382.7,2382.5,0.41977]
[1725556384111,3.2078,2382.7,2382.4,0.4260871]
[1725556384314,0.41979,2382.5,2382.4,0.0062971]
[1725556384510,0.41979,2382.5,2382.4,0.4260971]
[1725556384705,3.2078,2382.7,2382.4,0.4260971]
[1725556384906,0.41979,2382.5,2382.4,0.0062971]
[1725556385108,4.67706,2382.5,2382.4,0.0062971]
[1725556385505,4.67706,2382.5,2381.7,1.41452]
[1725556385506,0.41987,2382.0,2381.7,0.3647]
[1725556385718,13.82519,2382.5,2381.4,4.2486]
[1725556385719,1.04961,2382.2,2381.4,0.58599465]
[1725556385905,3.2078,2382.0,2381.6,0.41993]
[1725556386107,0.41993,2381.7,2381.5,0.41995]
[1725556386309,0.41992,2381.8,2381.6,0.41994]
[1725556386508,0.4261971,2381.9,2381.6,0.41994]
[1725556386815,0.41991,2381.8,2381.6,0.41993]
[1725556387021,0.41991,2381.8,2381.5,0.4262471]
[1725556387318,0.41994,2381.6,2381.5,0.0062971]
[1725556387513,3.2078,2381.6,2381.5,0.0062971]
[1725556387716,0.41994,2381.6,2381.5,0.0062971]
[1725556387915,7.82694,2381.6,2381.5,0.0062971]
[1725556388515,4.61914,2381.6,2381.5,0.0062971]
[1725556389123,7.407,2381.6,2381.5,0.0062971]
[1725556389822,3.2078,2381.6,2381.5,0.0062971]
[1725556390009,3.62774,2381.6,2381.5,0.0062971]
[1725556391915,7.82694,2381.6,2381.5,0.0062971]
[1725556392720,14.87681,2381.6,2381.5,0.0062971]
[1725556393022,20.15528,2381.6,2381.5,0.0062971]
[1725556393220,0.42005,2381.0,2380.8,0.42008]
[1725556393424,0.42004,2381.1,2380.8,0.42007]
[1725556393614,0.42005,2381.0,2380.8,0.42007]
[1725556393809,0.42007,2380.9,2380.4,3.2078]
[1725556394017,0.42014,2380.5,2380.2,0.42018]
[1725556394217,3.2078,2380.3,2380.1,0.00424307]
[1725556394427,3.62799,2380.2,2380.1,0.00424307]
[1725556394814,3.2078,2380.2,2380.1,0.42445307]
[1725556395219,3.2140971,2380.6,2380.2,0.42019]
[1725556395520,0.42015,2380.5,2380.1,0.00424307]
[1725556395823,3.2140971,2380.6,2380.1,0.00424307]
[1725556395824,3.6342271,2380.6,2380.1,0.00424307]
[1725556396024,0.42017,2380.4,2380.1,0.00424307]
[1725556396214,3.6342271,2380.6,2380.1,0.00424307]
[1725556396421,3.2140971,2380.6,2380.3,0.42017]
[1725556397222,3.2140971,2380.6,2380.4,0.42015]
[1725556397522,3.2140971,2380.6,2380.3,0.42016]
[1725556397727,3.2140971,2380.6,2380.4,0.42015]
[1725556398528,3.2140971,2380.6,2380.5,0.42014]
[1725556399822,0.0062971,2380.6,2380.5,0.42014]
[1725556401325,0.0062971,2380.6,2380.4,0.42014]
[1725556401516,0.4264171,2380.6,2380.4,0.42014]
[1725556401716,0.4264171,2380.6,2380.2,0.3768]
[1725556401717,3.62794,2380.5,2380.3,0.42016]
[1725556401919,3.62794,2380.5,2380.1,0.00424307]
[1725556401920,3.2078,2380.5,2380.1,0.00424307]
[1725556402330,3.2078,2380.5,2380.4,0.42016]
[1725556402627,3.2078,2380.5,2380.3,0.42016]
[1725556402833,3.2078,2380.5,2380.1,0.00424307]
[1725556403032,3.2078,2380.5,2380.2,0.42018]
[1725556403229,3.2078,2380.5,2380.1,0.42444307]
[1725556403436,3.62799,2380.2,2380.1,0.00424307]
[1725556403927,14.88007,2380.2,2380.1,0.00424307]
[1725556404128,15.62187,2380.2,2380.1,0.00424307]
[1725556404530,8.57139,2380.2,2380.1,0.00424307]
[1725556404726,14.57139,2380.2,2380.1,0.00424307]
[1725556405731,14.57139,2380.2,2380.1,0.42445307]
[1725556405732,3.9496,2380.2,2380.1,0.42445307]
[1725556405931,3.5645,2380.2,2380.1,0.42445307]
[1725556406529,3.2078,2380.2,2380.1,0.42445307]
[1725556406925,0.3567,2380.4,2380.3,0.42017]
[1725556407233,0.3567,2380.4,2380.2,0.42018]
[1725556407931,0.77686,2380.4,2380.2,0.42018]
[1725556409243,3.2078,2380.3,2380.2,0.42018]
[1725556409741,3.2078,2380.3,2380.1,0.42444307]
[1725556410033,3.2078,2380.3,2380.2,0.42019]
[1725556411130,1.47067,2380.2,2380.1,0.00424307]
[1725556411331,4.98359,2380.2,2380.1,0.00424307]
[1725556411933,6.03407,2380.2,2380.1,0.00424307]
[1725556412135,4.98359,2380.2,2380.1,0.00424307]
[1725556412838,3.62798,2380.3,2380.1,0.42444307]
[1725556413223,3.2078,2380.3,2380.2,0.42019]
[1725556413640,3.62797,2380.3,2380.1,0.42444307]
[1725556413830,3.2078,2380.3,2380.2,0.42019]
[1725556415333,3.2078,2380.3,2380.1,0.42444307]
[1725556415535,0.42019,2380.2,2380.1,0.00424307]
[1725556416630,4.62179,2380.2,2380.1,0.00424307]
[1725556416839,11.67227,2380.2,2380.1,0.00424307]
[1725556417137,12.72275,2380.2,2380.1,0.00424307]
[1725556417342,0.42029,2379.7,2379.5,0.4203]
[1725556417538,0.42029,2379.7,2379.5,0.42031]
[1725556418136,4.35117,2379.8,2379.6,0.4203]
[1725556418836,0.42028,2379.7,2379.6,0.4203]
[1725556419034,4.98157,2379.8,2379.4,0.3796]
[1725556419335,3.9309,2379.8,2379.6,0.4203]
[1725556419536,4.35117,2379.8,2379.6,0.4203]
[1725556420342,3.5713,2379.8,2379.7,0.42028]
[1725556420542,3.2078,2379.8,2379.7,0.42028]
[1725556421342,0.42021,2380.1,2380.0,0.42023]
[1725556421536,3.2078,2380.2,2379.3,3.9469]
[1725556421537,3.2078,2380.2,2379.3,6.04859]
[1725556421741,0.42021,2380.1,2380.0,0.42022]
[1725556421939,0.42023,2380.0,2379.9,0.42024]
[1725556422239,0.42022,2380.1,2379.9,0.42023]
[1725556422738,0.42023,2380.0,2379.9,0.42023]
[1725556423046,0.42024,2380.0,2379.8,0.42025]
[1725556423242,4.25829,2380.2,2379.7,0.42026]
[1725556423243,3.2078,2379.9,2379.7,0.42026]
[1725556423442,3.62806,2379.9,2379.7,0.42026]
[1725556423632,3.62806,2379.9,2379.8,0.42026]
[1725556424241,3.2078,2379.9,2379.8,0.42026]
[1725556424841,3.9576,2380.3,2380.2,0.42019]
[1725556425136,4.37779,2380.3,2380.2,0.42019]
[1725556425337,0.42019,2380.2,2380.1,0.4202]
[1725556425537,0.42019,2380.2,2380.1,0.42021]
[1725556426644,0.42019,2380.2,2379.8,1.44016]
[1725556426945,3.62801,2380.1,2379.9,0.42023]
[1725556427133,3.62801,2380.1,2380.0,0.42023]
[1725556428049,3.2078,2380.1,2380.0,0.42023]
[1725556428735,3.62801,2380.1,2380.0,0.42023]
[1725556429041,3.2078,2380.1,2380.0,0.42023]
[1725556429239,3.62801,2380.1,2380.0,0.42023]
[1725556429444,0.42026,2379.9,2379.8,0.42026]
[1725556429642,0.42026,2379.9,2379.7,0.42027]
[1725556429942,1.05057,2380.0,2379.7,0.42027]
[1725556429943,3.62806,2379.8,2379.7,0.42027]
[1725556430151,3.2078,2379.8,2379.7,0.42027]
[1725556431945,0.42029,2379.7,2379.6,0.42029]
[1725556432145,3.62807,2379.8,2379.7,0.42028]
[1725556432348,3.2078,2379.8,2379.7,0.42028]
[1725556432547,3.62806,2379.8,2379.7,0.42028]
[1725556432853,0.42026,2379.9,2379.8,0.42026]
[1725556433051,0.42024,2380.0,2379.9,0.42023]
[1725556434050,3.33022,2380.1,2380.0,0.42023]
[1725556436149,0.42023,2380.0,2379.9,0.42023]
[1725556436650,0.42025,2379.9,2379.8,0.42025]
[1725556437156,0.42027,2379.8,2379.7,0.42027]
[1725556437345,0.7566,2379.8,2379.4,4.5264]
[1725556437546,3.33031,2379.5,2379.3,0.42033]
[1725556437748,3.33031,2379.5,2379.3,0.42034]
[1725556438050,2.91,2379.5,2379.4,0.42033]
[1725556438446,3.33029,2379.7,2379.5,0.42031]
[1725556438650,6.53809,2379.7,2379.5,0.42031]
[1725556439042,0.4203,2379.6,2379.5,0.42031]
[1725556439247,6.53809,2379.7,2379.5,0.42031]
[1725556439447,6.1178,2379.7,2379.6,0.4203]
[1725556439659,6.53808,2379.7,2379.5,0.4203]
[1725556440555,6.1178,2379.7,2379.6,0.4203]
[1725556440748,3.2078,2379.7,2379.6,0.4203]
[1725556441946,0.3914,2380.1,2379.6,5.25315]
[1725556442262,0.3914,2380.1,2379.5,0.3615]
[1725556442263,3.3014,2380.1,2379.7,0.42027]
[1725556442461,0.42023,2380.0,2379.8,0.42025]
[1725556443058,0.42031,2379.6,2379.2,3.2078]
[1725556443253,3.33031,2379.6,2379.4,0.42032]
[1725556443456,6.53811,2379.6,2379.5,0.42031]
[1725556443652,6.5381,2379.6,2379.5,0.42031]
[1725556443849,6.5381,2379.6,2378.9,3.2078]
[1725556443850,1.05079,2379.5,2378.9,3.2078]
[1725556444055,2.91,2379.2,2379.1,0.42039]
[1725556444549,0.4266371,2379.4,2378.9,3.2078]
[1725556444550,0.0062971,2379.4,2379.3,0.42035]
[1725556445653,0.0062971,2379.4,2379.3,0.80225]
[1725556445855,0.0062971,2379.4,2379.3,5.00545]
[1725556446761,0.0062971,2379.4,2379.3,0.80225]
[1725556446959,0.0062971,2379.4,2379.3,0.42035]
[1725556447654,0.0062971,2379.4,2379.3,4.62355]
[1725556448960,0.0062971,2379.4,2379.3,5.67443]
[1725556449364,0.0062971,2379.4,2379.3,4.62355]
[1725556449557,0.0062971,2379.4,2379.3,5.67443]
[1725556449755,0.20981829,2380.0,2379.9,0.42024]
[1725556449964,0.3729,2380.1,2380.0,0.42023]
[1725556452759,4.2964771,2380.3,2379.8,1.4334471]
[1725556452954,4.2964771,2380.3,2380.2,0.42019]
[1725556454056,0.0062971,2380.3,2380.2,0.42019]
[1725556454257,0.0062971,2380.3,2380.2,1.47067]
[1725556454453,7.0778,2380.8,2380.7,0.4201]
[1725556454659,7.4649,2380.8,2380.7,0.4201]
[1725556454862,3.5949,2380.8,2380.7,0.4201]
[1725556455058,3.5949,2380.8,2380.6,0.42011]
[1725556455262,0.4201,2380.7,2380.6,0.42011]
[1725556455457,4.015,2380.8,2380.6,0.42011]
[1725556455663,0.42014,2380.5,2380.1,4.146]
[1725556455863,0.3871,2380.8,2380.7,0.4201]
[1725556456660,0.3864971,2380.9,2380.8,0.42008]
[1725556456661,0.0062971,2380.9,2380.8,0.42008]
[1725556457468,0.3945,2381.2,2381.1,0.42003]
[1725556457660,3.2078,2381.3,2381.2,0.42001]
[1725556458959,0.0062971,2381.5,2381.4,0.41998]
[1725556460767,4.2054971,2381.5,2381.0,3.2140971]
[1725556460970,0.4262671,2381.5,2381.2,0.42001]
[1725556462466,0.4262671,2381.5,2381.3,0.42]
[1725556462662,0.4262671,2381.5,2381.2,0.42]
[1725556462872,3.6340671,2381.5,2381.2,0.42]
[1725556463260,3.6340671,2381.5,2381.3,0.42]
[1725556463460,3.6340671,2381.5,2381.2,0.42]
[1725556463964,0.41998,2381.4,2381.2,0.42]
[1725556464169,0.4262671,2381.5,2381.2,0.42]
[1725556464466,0.0062971,2381.5,2381.4,0.41998]
[1725556466075,0.211,2382.3,2381.4,10.1992]
[1725556466382,1.3453,2382.8,2382.2,1.0496]
[1725556466559,0.7682,2382.8,2382.7,0.41975]
[1725556466758,0.3919,2382.8,2382.7,0.41975]
[1725556467366,0.0062971,2383.0,2382.9,0.41971]
[1725556467564,0.41974,2382.8,2382.6,3.2078]
[1725556467769,0.0062971,2383.0,2382.6,0.41976]
[1725556467770,1.0555571,2383.0,2382.6,0.41976]
[1725556467967,0.41974,2382.8,2382.6,0.41976]
[1725556470170,0.41975,2382.7,2382.6,0.41976]
[1725556470470,0.41977,2382.6,2382.5,0.0062971]
[1725556470771,1.16797,2382.6,2382.5,0.0062971]
[1725556471669,4.37577,2382.6,2382.5,0.0062971]
[1725556471870,1.16797,2382.6,2382.5,0.0062971]
[1725556472469,2.2174,2382.6,2382.5,0.0062971]
[1725556472865,1.16797,2382.6,2382.5,0.0062971]
[1725556473862,9.622,2382.6,2382.5,0.0062971]
[1725556474059,6.4142,2382.6,2382.5,0.0062971]
[1725556474458,0.7482,2382.6,2382.5,0.4260871]
[1725556475265,0.3826,2382.6,2382.5,0.4260871]
[1725556476059,0.3681,2382.7,2382.6,0.41977]
[1725556477079,0.3681,2382.7,2382.5,0.4260671]
[1725556477271,0.41977,2382.6,2382.5,0.0062971]
[1725556479972,3.99566,2382.7,2382.5,0.4260871]
[1725556480363,3.99566,2382.7,2382.5,0.0062971]
[1725556480776,0.41977,2382.6,2382.5,0.0062971]
[1725556481773,0.0062971,2383.0,2382.5,14.4603271]
[1725556482074,0.0062971,2383.0,2382.9,0.41971]
[1725556482270,0.21381806,2383.8,2383.1,1.04919]
[1725556482474,0.63337806,2383.8,2383.5,0.4196]
[1725556482671,0.21381806,2383.8,2383.5,0.4196]
[1725556482973,0.21381806,2383.8,2383.6,0.41959]
[1725556483171,0.7522971,2383.9,2383.3,1.04912]
[1725556483370,1.1718471,2383.9,2383.2,1.04916]
[1725556483571,0.41956,2383.8,2383.5,0.4196]
[1725556484077,0.41958,2383.7,2383.4,0.41962]
[1725556484274,0.95872403,2383.9,2383.5,0.41961]
[1725556484275,0.80646,2383.8,2383.5,0.41961]
[1725556484469,0.80646,2383.8,2383.1,3.2078]
[1725556484470,0.3869,2383.8,2383.1,3.2078]
[1725556484671,0.4196,2383.6,2383.1,3.2078]
[1725556484872,0.41958,2383.7,2383.1,3.2078]
[1725556485174,0.41958,2383.7,2383.1,4.25698]
[1725556485370,0.4196,2383.6,2383.1,3.2078]
[1725556485571,0.41963,2383.4,2383.1,3.62747]
[1725556485777,0.41962,2383.5,2383.2,0.41966]
[1725556485979,0.41963,2383.4,2383.2,0.41966]
[1725556486872,4.2568,2383.6,2383.2,0.41966]
[1725556487083,0.41964,2383.4,2383.2,0.41966]
[1725556487777,0.41962,2383.5,2383.3,0.41964]
[1725556487978,3.2078,2383.6,2382.9,1.04928]
[1725556488179,3.2078,2383.6,2382.6,0.3895]
[1725556488180,1.04921,2383.1,2382.6,0.3895]
[1725556488382,0.41974,2382.8,2382.5,0.0062971]
[1725556488683,3.62752,2382.9,2382.6,0.41976]
[1725556489071,0.41973,2382.8,2382.5,0.4260671]
[1725556489474,3.62752,2382.9,2382.6,0.41976]
[1725556489678,3.62752,2382.9,2382.5,0.0062971]
[1725556489679,3.2078,2382.9,2382.5,0.4260771]
[1725556489880,3.2078,2382.9,2382.5,0.0062971]
[1725556490080,0.41973,2382.8,2382.5,0.0062971]
[1725556490390,0.41973,2382.8,2382.5,0.4260671]
[1725556490885,1.1661,2383.0,2382.7,0.41974]
[1725556491072,1.1661,2383.0,2382.6,0.41976]
[1725556491073,3.9542,2383.0,2382.6,0.41976]
[1725556491277,0.41973,2382.9,2382.6,0.41976]
[1725556492388,0.41973,2382.9,2382.6,0.41975]
[1725556492580,0.41973,2382.8,2382.5,0.4260771]
[1725556492886,0.41973,2382.8,2382.6,0.41976]
[1725556493086,3.9542,2383.0,2382.5,0.0062971]
[1725556493285,0.7464,2383.0,2382.8,0.41972]
[1725556493485,1.1661,2383.0,2382.8,0.41972]
[1725556494285,0.7464,2383.0,2382.6,0.3942]
[1725556494583,0.3885,2383.0,2382.9,0.41971]
[1725556494982,1.71814887,2383.5,2382.6,1.4436]
[1725556494983,0.41965,2383.3,2383.1,0.41968]
[1725556495489,0.3824,2383.4,2383.0,0.41969]
[1725556495490,0.41967,2383.2,2383.0,0.41969]
[1725556495986,0.41969,2383.1,2382.9,0.41971]
[1725556498188,0.41974,2382.8,2382.6,7.77355]
[1725556498389,0.41974,2382.8,2382.6,0.41975]
[1725556498683,0.7773,2383.0,2382.9,0.41971]
[1725556498886,0.7773,2383.0,2382.5,1.4052571]
[1725556498887,0.7773,2383.0,2382.8,0.41972]
[1725556499488,0.7773,2383.0,2382.9,0.41971]
[1725556499784,0.7773,2383.0,2382.5,1.4052571]
[1725556500087,0.7773,2383.0,2382.9,0.41971]
[1725556500291,0.3576,2383.0,2382.9,0.41971]
[1725556501389,0.41965,2383.3,2383.2,0.41966]
[1725556501887,0.41966,2383.2,2383.1,0.41967]
[1725556502085,3.87,2383.3,2382.6,4.146]
[1725556502290,3.87,2383.3,2382.5,0.0062971]
[1725556502291,0.41977,2382.6,2382.5,0.0062971]
[1725556502493,3.83921576,2382.6,2382.5,0.0062971]
[1725556502678,3.84085317,2382.6,2382.5,0.0062971]
[1725556502884,3.2078,2382.6,2382.5,0.4260871]
[1725556503293,0.3747,2382.7,2382.5,0.0062971]
[1725556503483,0.81007,2382.6,2382.5,0.0062971]
[1725556504477,3.99539,2383.1,2382.8,0.41972]
[1725556504679,0.7787,2383.0,2382.8,0.41972]
[1725556505081,0.7787,2383.0,2382.8,0.41973]
[1725556505288,0.41971,2382.9,2382.6,0.41977]
[1725556505589,0.77871,2383.0,2382.8,0.41973]
[1725556505795,0.41973,2382.8,2382.6,0.41976]
[1725556505983,0.41975,2382.7,2382.5,0.4260771]
[1725556506178,0.359,2383.0,2382.5,0.0062971]
[1725556506483,0.41977,2382.6,2382.5,0.0062971]
[1725556506685,0.63415288,2382.6,2382.5,0.0062971]
[1725556506889,1.01855288,2382.6,2382.5,0.0062971]
[1725556508090,0.41973,2382.9,2382.6,0.41975]
[1725556508293,0.41973,2382.9,2382.7,0.41975]
[1725556508587,1.79086,2383.0,2382.5,0.4260671]
[1725556508796,0.41976,2382.7,2382.5,0.4260671]
[1725556508988,1.4692,2382.6,2382.5,0.0062971]
[1725556509190,6.0286,2382.6,2382.5,0.0062971]
[1725556509492,0.78237,2382.6,2382.5,0.0062971]
[1725556509794,6.24216414,2382.6,2382.5,0.0062971]
[1725556509989,0.41979,2382.5,2381.8,0.4199]
[1725556510197,0.41988,2382.0,2381.7,4.56591]
[1725556510492,0.41988,2382.0,2381.8,0.41991]
[1725556510887,0.41986,2382.1,2381.8,0.41991]
[1725556511185,0.41986,2382.1,2381.6,0.3909]
[1725556511186,0.0062971,2382.2,2381.7,0.0062971]
[1725556511385,0.41987,2382.1,2381.8,0.4199]
[1725556511584,0.4261471,2382.2,2381.7,0.0062971]
[1725556511987,0.41986,2382.1,2381.9,0.41989]
[1725556512291,3.2140971,2382.2,2381.8,0.4199]
[1725556512493,3.2140971,2382.2,2381.7,0.0062971]
[1725556512494,0.41988,2382.0,2381.7,0.4262071]
[1725556513300,0.3658,2382.0,2381.7,0.0062971]
[1725556513792,0.3658,2382.0,2381.9,0.41989]
[1725556513997,0.0062971,2382.2,2382.0,0.41986]
[1725556514196,0.0062971,2382.2,2382.1,0.41986]
[1725556514605,0.4261371,2382.2,2382.0,0.41986]
[1725556514991,0.0062971,2382.2,2382.0,0.41986]
[1725556515491,0.0062971,2382.2,2382.1,0.41986]
[1725556516099,0.0062971,2382.2,2382.0,0.41986]
[1725556516395,0.41986,2382.1,2381.8,0.4199]
[1725556516699,0.41989,2381.9,2381.7,0.4262071]
[1725556516897,0.4199,2381.9,2381.7,0.4262071]
[1725556517396,0.4199,2381.9,2381.7,0.4262171]
[1725556517589,4.63836,2382.1,2381.7,0.4262171]
[1725556517590,4.63836,2382.1,2381.7,0.0062971]
[1725556517792,0.80076,2382.1,2381.7,0.0062971]
[1725556517993,0.3809,2382.1,2381.7,0.0062971]
[1725556518188,0.3809,2382.1,2381.9,0.41988]
[1725556518396,0.41988,2382.0,2381.8,0.4199]
[1725556518596,0.4199,2381.9,2381.7,0.4262071]
[1725556518893,0.41991,2381.8,2381.7,0.0062971]
[1725556519097,2.21519,2381.8,2381.7,0.0062971]
[1725556519489,5.42299,2381.8,2381.7,0.0062971]
[1725556519890,6.47277,2381.8,2381.7,0.0062971]
[1725556520090,1.04989,2381.6,2381.1,0.42002]
[1725556520391,1.04989,2381.6,2381.0,0.42004]
[1725556520392,0.42,2381.3,2381.0,0.42004]
[1725556520699,0.42003,2381.1,2380.9,4.56605]
[1725556520892,0.42004,2381.1,2380.6,2.9]
[1725556521200,0.762,2381.2,2381.0,0.42005]
[1725556521401,1.18202,2381.2,2380.9,0.42006]
[1725556521900,0.42003,2381.1,2380.8,0.42007]
[1725556522598,3.2078,2381.0,2380.6,0.0062971]
[1725556522791,0.4201,2380.8,2380.6,0.0062971]
[1725556522988,6.1140971,2380.9,2380.6,0.0062971]
[1725556523192,4.37036,2380.7,2380.6,0.0062971]
[1725556523594,0.42019,2380.3,2379.7,4.357]
[1725556523796,0.42019,2380.3,2379.6,7.3407]
[1725556523797,3.2078,2380.3,2379.6,0.3927]
[1725556524000,0.42029,2379.7,2379.2,9.30333232]
[1725556524200,3.2078,2380.0,2379.2,3.2078]
[1725556524201,0.4203,2379.6,2379.2,3.2078]
[1725556524402,0.42029,2379.7,2379.3,0.42033]
[1725556524601,0.42029,2379.7,2379.3,0.4266271]
[1725556524602,0.4265871,2379.7,2379.3,0.4266271]
[1725556524793,0.4203,2379.6,2379.3,0.4266271]
[1725556525107,0.4203,2379.6,2379.3,0.0062971]
[1725556525108,3.2078,2379.6,2379.3,0.0062971]
[1725556525310,0.42032,2379.5,2379.3,0.0062971]